{"text_format":"1","workbook":"xlsx","n_sheets":2,"sheets":["ГРАФИК","врем"],"not_rendered":{"charts":0,"images":3,"macros":1,"external_links":0,"defined_names":1,"comments":0,"pivot_tables":0},"unopened":[],"bounds":{"document_bytes":16777216,"sheet_cells":100000,"rows_first":2000,"rows_last":500,"rows_between":2000,"halvings":0,"cell_chars":16384,"cell_head_chars":4096},"cells_cut":0,"cells_raw":0,"read":"whole","date_system":"1900"}

{"sheet":"ГРАФИК","index":0,"n_rows":17,"n_cols":43,"rows_kept":17,"cut":false,"hidden":false,"merged":[[1,14,1,18],[2,42,3,42]]}
["шаблон"]
["8/6",219,null,null,null,null,null,null,null,null,null,null,null,null,"2026-02-01"]
["8","участок",null,null,null,null,null,null,null,null,null,null,null,null,null,null,null,null,null,null,null,null,null,null,null,null,null,null,null,null,null,null,null,null,null,null,null,null,10,20,10,20,"ночные"]
[8,"основное море","Фамилия","Таб","2026-02-01","2026-02-02","2026-02-03","2026-02-04","2026-02-05","2026-02-06","2026-02-07","2026-02-08","2026-02-09","2026-02-10","2026-02-11","2026-02-12","2026-02-13","2026-02-14","2026-02-15","2026-02-16","2026-02-17","2026-02-18","2026-02-19","2026-02-20","2026-02-21","2026-02-22","2026-02-23","2026-02-24","2026-02-25","2026-02-26","2026-02-27","2026-02-28","2026-03-01","2026-03-02","2026-03-03",null,null,null,113,113,219,219]
[8,"219 море",null,673,null,null,null,null,null,null,null,null,null,null,null,null,null,null,null,null,null,null,null,null,null,null,null,null,null,null,null,null,null,null,null,null,null,{"$f":"D5","v":673},{"$f":"SumTsv(E5:AI5,$A$3)","v":0},{"$f":"SumTsv(E5:AI5,$A$4)","v":0},{"$f":"SumTsv(E5:AI5,$A$5)","v":0},{"$f":"SumTsv(E5:AI5,$A$2)","v":0},{"$f":"SUM(IFERROR(--MID(E5:AI5,SEARCH(\"/\",E5:AI5)+1,9),0))","v":0}]
[null,null,null,820,null,null,null,null,null,null,null,null,null,null,null,null,null,null,null,null,null,null,null,null,null,null,null,null,null,null,null,null,null,null,null,null,null,{"$f":"D6","v":820},{"$f":"SumTsv(E6:AI6,$A$3)","v":0},{"$f":"SumTsv(E6:AI6,$A$4)","v":0},{"$f":"SumTsv(E6:AI6,$A$5)","v":0},{"$f":"SumTsv(E6:AI6,$A$2)","v":0},{"$f":"SUM(IFERROR(--MID(E6:AI6,SEARCH(\"/\",E6:AI6)+1,9),0))","v":0}]
[null,null,null,787,null,null,null,null,null,null,null,null,null,null,null,null,null,null,null,null,null,null,null,null,null,null,null,null,null,null,null,null,null,null,null,null,null,787,{"$f":"SumTsv(E7:AI7,$A$3)","v":0},0,0,0,{"$f":"SUM(IFERROR(--MID(E7:AI7,SEARCH(\"/\",E7:AI7)+1,9),0))","v":0}]
[null,null,null,441,null,null,null,null,null,null,"8","7","8",null,null,"12","8",null,null,"8","8","8/6",null,null,null,null,null,null,null,null,null,null,null,null,null,null,null,441,{"$f":"SumTsv(E8:AI8,$A$3)","v":31},{"$f":"SumTsv(E8:AI8,$A$4)","v":16},{"$f":"SumTsv(E8:AI8,$A$5)","v":20},{"$f":"SumTsv(E8:AI8,$A$2)","v":0},{"$f":"SUM(IFERROR(--MID(E8:AI8,SEARCH(\"/\",E8:AI8)+1,9),0))","v":6}]
[null,null,null,111,null,null,null,null,null,null,null,null,null,null,null,null,null,null,null,null,null,null,"16/2",null,null,null,null,null,null,null,null,null,null,null,null,null,null,111,16,0,0,0,{"$f":"SUM(IFERROR(--MID(E9:AI9,SEARCH(\"/\",E9:AI9)+1,9),0))","v":2}]
[null,null,null,222,null,null,null,null,null,null,null,"8",null,null,"8",null,"7",null,"7",null,null,null,"7",null,null,null,null,null,null,null,null,null,null,null,null,null,null,222,37,0,0,0,{"$f":"SUM(IFERROR(--MID(E10:AI10,SEARCH(\"/\",E10:AI10)+1,9),0))","v":0}]
[null,null,null,333,null,null,null,null,null,null,null,null,null,null,null,null,null,null,null,null,null,null,null,null,null,null,null,null,null,null,null,null,null,null,null,null,null,333,0,0,0,0,{"$f":"SUM(IFERROR(--MID(E11:AI11,SEARCH(\"/\",E11:AI11)+1,9),0))","v":0}]
[null,null,null,444,null,null,null,null,null,null,null,null,null,null,null,null,null,null,"8",null,"8",null,"8",null,null,null,null,null,null,null,null,null,null,null,null,null,null,444,16,0,0,8,{"$f":"SUM(IFERROR(--MID(E12:AI12,SEARCH(\"/\",E12:AI12)+1,9),0))","v":0}]
[null,null,null,null,null,null,null,null,null,null,null,null,null,null,null,null,null,null,null,null,null,null,null,null,null,null,null,null,null,null,null,null,null,null,null,null,null,0,0,0,0,0,{"$f":"SUM(IFERROR(--MID(E13:AI13,SEARCH(\"/\",E13:AI13)+1,9),0))","v":0}]
[null,null,null,null,null,null,null,null,null,null,null,null,null,null,null,null,null,null,null,null,null,null,null,null,null,null,null,null,null,null,null,null,null,null,null,null,null,0,0,0,0,0,{"$f":"SUM(IFERROR(--MID(E14:AI14,SEARCH(\"/\",E14:AI14)+1,9),0))","v":0}]
[]
[]
[null,{"$f":"GetFillColor(A2)","v":15}]

{"sheet":"врем","index":1,"n_rows":114,"n_cols":8,"rows_kept":114,"cut":false,"hidden":false,"merged":[]}
[]
[]
[]
[]
[null,null,null,1,2,3,4,5]
[null,null,null,null,"фамилия","113-219","% доплат","время"]
[null,null,null,1,441,113,10,31]
[null,null,null,2,441,113,20,16]
[null,null,null,3,441,219,10,20]
[null,null,null,4,111,113,10,16]
[null,null,null,5,222,113,10,37]
[null,null,null,6,444,113,10,16]
[null,null,null,7,444,219,20,8]
[null,null,null,8]
[null,null,null,9]
[null,null,null,10]
[null,null,null,11]
[null,null,null,12]
[null,null,null,13]
[null,null,null,14]
[null,null,null,15]
[null,null,null,16]
[null,null,null,17]
[null,null,null,18]
[null,null,null,1]
[null,null,null,2]
[null,null,null,3]
[null,null,null,4]
[null,null,null,5]
[null,null,null,6]
[null,null,null,7]
[null,null,null,8]
[null,null,null,9]
[null,null,null,10]
[null,null,null,11]
[null,null,null,12]
[null,null,null,13]
[null,null,null,14]
[null,null,null,15]
[null,null,null,16]
[null,null,null,17]
[null,null,null,18]
[null,null,null,1]
[null,null,null,2]
[null,null,null,3]
[null,null,null,4]
[null,null,null,5]
[null,null,null,6]
[null,null,null,7]
[null,null,null,8]
[null,null,null,9]
[null,null,null,10]
[null,null,null,11]
[null,null,null,12]
[null,null,null,13]
[null,null,null,14]
[null,null,null,15]
[null,null,null,16]
[null,null,null,17]
[null,null,null,18]
[null,null,null,1]
[null,null,null,2]
[null,null,null,3]
[null,null,null,4]
[null,null,null,5]
[null,null,null,6]
[null,null,null,7]
[null,null,null,8]
[null,null,null,9]
[null,null,null,10]
[null,null,null,11]
[null,null,null,12]
[null,null,null,13]
[null,null,null,14]
[null,null,null,15]
[null,null,null,16]
[null,null,null,17]
[null,null,null,18]
[null,null,null,1]
[null,null,null,2]
[null,null,null,3]
[null,null,null,4]
[null,null,null,5]
[null,null,null,6]
[null,null,null,7]
[null,null,null,8]
[null,null,null,9]
[null,null,null,10]
[null,null,null,11]
[null,null,null,12]
[null,null,null,13]
[null,null,null,14]
[null,null,null,15]
[null,null,null,16]
[null,null,null,17]
[null,null,null,18]
[null,null,null,1]
[null,null,null,2]
[null,null,null,3]
[null,null,null,4]
[null,null,null,5]
[null,null,null,6]
[null,null,null,7]
[null,null,null,8]
[null,null,null,9]
[null,null,null,10]
[null,null,null,11]
[null,null,null,12]
[null,null,null,13]
[null,null,null,14]
[null,null,null,15]
[null,null,null,16]
[null,null,null,17]
[null,null,null,18]